{"text_format":"3","workbook":"xlsx","n_sheets":4,"sheets":["Prehľad rozpočtu","Súhrn rozpočtu","Mesačné výdavky","Ďalšie údaje"],"not_rendered":{"charts":1,"images":4,"defined_names":7,"pivot_tables":2},"read":"whole","date_system":"1900"}

{"sheet":"Prehľad rozpočtu","index":0,"n_rows":12,"n_cols":8,"rows_kept":12,"merged":[[2,1,2,2],[3,1,3,2],[4,1,4,2]]}
[{"$nulls":7}," "]
[null,"Zostatok"]
[null,"Predpokladaný zostatok",null,{"$f":"Predpokladané_príjmy-Predpokladané_výdavky","v":{"v":1585,"d":"1,585 EUR"}},null,"Predpokladané mínus výdavky"]
[null,"Skutočný zostatok ",null,{"$f":"Skutočné_príjmy-Skutočné_výdavky","v":{"v":1740,"d":"1,740 EUR"}},null,"Skutočné mínus výdavky"]
[null,"Rozdiel",null,{"$f":"D4-D3","v":{"v":155,"d":"155 EUR"}},null,"Skutočné mínus predpokladané"]
[null,"Príjmy",{"$nulls":3},"Výdavky"]
[null,null,"Predpokladané","Skutočné",null,"Predpokladané","Skutočné"]
[null,"Príjem 1",{"v":6000,"d":"6,000 EUR"},{"v":5800,"d":"5,800 EUR"},null,{"$f":"SUM(Tabuľka_Mesačné_výdavky[Predpokladané náklady])","v":{"v":7915,"d":"7,915 EUR"}},{"$f":"SUM(Tabuľka_Mesačné_výdavky[Skutočné náklady])","v":{"v":7860,"d":"7,860 EUR"}}]
[null,"Príjem 2",{"v":1000,"d":"1,000 EUR"},{"v":2300,"d":"2,300 EUR"}]
[null,"Osobitné príjmy",{"v":2500,"d":"2,500 EUR"},{"v":1500,"d":"1,500 EUR"}]
[null,"Celkové príjmy",{"$f":"SUM(C8:C10)","v":{"v":9500,"d":"9,500 EUR"}},{"$f":"SUM(D8:D10)","v":{"v":9600,"d":"9,600 EUR"}}]
[null,"Rozdelenie skutočných výdavkov"]

{"sheet":"Súhrn rozpočtu","index":1,"n_rows":51,"n_cols":7,"rows_kept":51}
[null,"Súhrn rozpočtu",{"$nulls":4}," "]
[]
[null,"Kategórie","Predpokladané náklady ","Skutočné náklady ","Rozdiel "]
[null,"Bývanie",{"v":2830,"d":"2,830 EUR"},{"v":2702,"d":"2,702 EUR"},{"v":-72,"d":"-72 EUR"}]
[null,"Elektrina",{"v":45,"d":"45 EUR"},{"v":50,"d":"50 EUR"},{"v":-5,"d":"-5 EUR"}]
[null,"Hypotéka alebo nájomné",{"v":1700,"d":"1,700 EUR"},{"v":1700,"d":"1,700 EUR"},{"v":0,"d":"0 EUR"}]
[null,"Internet",{"v":100,"d":"100 EUR"},{"v":100,"d":"100 EUR"},{"v":0,"d":"0 EUR"}]
[null,"Jednorazové potreby",{"v":40,"d":"40 EUR"},{"v":55,"d":"55 EUR"},{"v":-15,"d":"-15 EUR"}]
[null,"Káblová/satelitná televízia",{"v":100,"d":"100 EUR"},{"v":100,"d":"100 EUR"},{"v":0,"d":"0 EUR"}]
[null,"Odvoz a recyklácia odpadu",{"v":25,"d":"25 EUR"},{"v":22,"d":"22 EUR"},{"v":3,"d":"3 EUR"}]
[null,"Plyn",{"v":300,"d":"300 EUR"},{"v":400,"d":"400 EUR"},{"v":-100,"d":"-100 EUR"}]
[null,"Telefón (mobil)",{"v":60,"d":"60 EUR"},{"v":60,"d":"60 EUR"},{"v":0,"d":"0 EUR"}]
[null,"Telefón (pevná linka)",{"v":35,"d":"35 EUR"},{"v":39,"d":"39 EUR"},{"v":-4,"d":"-4 EUR"}]
[null,"Údržba",{"v":200,"d":"200 EUR"},{"v":150,"d":"150 EUR"},{"v":50,"d":"50 EUR"}]
[null,"Upratovacie služby",{"v":200,"d":"200 EUR"},null,{"v":0,"d":"0 EUR"}]
[null,"Vodné a stočné",{"v":25,"d":"25 EUR"},{"v":26,"d":"26 EUR"},{"v":-1,"d":"-1 EUR"}]
[null,"Zemný plyn/vykurovací olej",null,null,{"v":0,"d":"0 EUR"}]
[]
[null,"Dane",{"v":300,"d":"300 EUR"},{"v":300,"d":"300 EUR"},{"v":0,"d":"0 EUR"}]
[null,"Celoštátne",{"v":300,"d":"300 EUR"},{"v":300,"d":"300 EUR"},{"v":0,"d":"0 EUR"}]
[null,"Miestne",null,null,{"v":0,"d":"0 EUR"}]
[null,"Štátne",null,null,{"v":0,"d":"0 EUR"}]
[]
[null,"Dary a príspevky",{"v":100,"d":"100 EUR"},{"v":125,"d":"125 EUR"},{"v":-25,"d":"-25 EUR"}]
[]
[null,"Deti",{"v":140,"d":"140 EUR"},{"v":140,"d":"140 EUR"},{"v":0,"d":"0 EUR"}]
[]
[null,"Domáce zvieratá",{"v":170,"d":"170 EUR"},{"v":100,"d":"100 EUR"},{"v":70,"d":"70 EUR"}]
[]
[null,"Doprava",{"v":1425,"d":"1,425 EUR"},{"v":1375,"d":"1,375 EUR"},{"v":50,"d":"50 EUR"}]
[]
[null,"Jedlo",{"v":1100,"d":"1,100 EUR"},{"v":1320,"d":"1,320 EUR"},{"v":-220,"d":"-220 EUR"}]
[]
[null,"Osobná starostlivosť",{"v":150,"d":"150 EUR"},{"v":140,"d":"140 EUR"},{"v":10,"d":"10 EUR"}]
[]
[null,"Poistenie",{"v":900,"d":"900 EUR"},{"v":900,"d":"900 EUR"},{"v":0,"d":"0 EUR"}]
[]
[null,"Pôžičky",{"v":200,"d":"200 EUR"},{"v":200,"d":"200 EUR"},{"v":0,"d":"0 EUR"}]
[]
[null,"Sporenie",{"v":200,"d":"200 EUR"},{"v":200,"d":"200 EUR"},{"v":0,"d":"0 EUR"}]
[]
[null,"Zábava",{"v":400,"d":"400 EUR"},{"v":358,"d":"358 EUR"},{"v":42,"d":"42 EUR"}]
[null,"Divadlo",{"v":200,"d":"200 EUR"},{"v":150,"d":"150 EUR"},{"v":50,"d":"50 EUR"}]
[null,"Filmy",{"v":50,"d":"50 EUR"},{"v":28,"d":"28 EUR"},{"v":22,"d":"22 EUR"}]
[null,"Hudba (CD, stiahnuté súbory atď.)",{"v":50,"d":"50 EUR"},{"v":30,"d":"30 EUR"},{"v":20,"d":"20 EUR"}]
[null,"Koncerty",{"v":50,"d":"50 EUR"},{"v":40,"d":"40 EUR"},{"v":10,"d":"10 EUR"}]
[null,"Športové podujatia",{"v":0,"d":"0 EUR"},{"v":40,"d":"40 EUR"},{"v":-40,"d":"-40 EUR"}]
[null,"Video/DVD (kúpa)",{"v":20,"d":"20 EUR"},{"v":50,"d":"50 EUR"},{"v":-30,"d":"-30 EUR"}]
[null,"Video/DVD (výpožičky)",{"v":30,"d":"30 EUR"},{"v":20,"d":"20 EUR"},{"v":10,"d":"10 EUR"}]
[]
[null,"Celkový súčet",{"v":7915,"d":"7,915 EUR"},{"v":7860,"d":"7,860 EUR"},{"v":-145,"d":"-145 EUR"}]

{"sheet":"Mesačné výdavky","index":2,"n_rows":61,"n_cols":8,"rows_kept":61}
[{"$nulls":7}," "]
[null,"Popis","Kategória","Predpokladané náklady","Skutočné náklady","Rozdiel","Prehľad skutočných nákladov"]
[null,"Mimoškolské aktivity","Deti",{"v":40,"d":"40 EUR"},{"v":40,"d":"40 EUR"},{"$f":"IF(OR(Tabuľka_Mesačné_výdavky[[#This Row],[Predpokladané náklady]]=\"\",Tabuľka_Mesačné_výdavky[[#This Row],[Skutočné náklady]]=\"\"),\"\",Tabuľka_Mesačné_výdavky[[#This Row],[Predpokladané náklady]]-Tabuľka_Mesačné_výdavky[[#This Row],[Skutočné náklady]])","v":{"v":0,"d":"0 EUR"}},{"$f":"Tabuľka_Mesačné_výdavky[[#This Row],[Skutočné náklady]]","v":40}]
[null,"Zdravie","Deti",null,null,{"$f":"IF(OR(Tabuľka_Mesačné_výdavky[[#This Row],[Predpokladané náklady]]=\"\",Tabuľka_Mesačné_výdavky[[#This Row],[Skutočné náklady]]=\"\"),\"\",Tabuľka_Mesačné_výdavky[[#This Row],[Predpokladané náklady]]-Tabuľka_Mesačné_výdavky[[#This Row],[Skutočné náklady]])","v":""},{"$f":"Tabuľka_Mesačné_výdavky[[#This Row],[Skutočné náklady]]","v":0}]
[null,"Školské pomôcky","Deti",null,null,{"$f":"IF(OR(Tabuľka_Mesačné_výdavky[[#This Row],[Predpokladané náklady]]=\"\",Tabuľka_Mesačné_výdavky[[#This Row],[Skutočné náklady]]=\"\"),\"\",Tabuľka_Mesačné_výdavky[[#This Row],[Predpokladané náklady]]-Tabuľka_Mesačné_výdavky[[#This Row],[Skutočné náklady]])","v":""},{"$f":"Tabuľka_Mesačné_výdavky[[#This Row],[Skutočné náklady]]","v":0}]
[null,"Školné","Deti",{"v":100,"d":"100 EUR"},{"v":100,"d":"100 EUR"},{"$f":"IF(OR(Tabuľka_Mesačné_výdavky[[#This Row],[Predpokladané náklady]]=\"\",Tabuľka_Mesačné_výdavky[[#This Row],[Skutočné náklady]]=\"\"),\"\",Tabuľka_Mesačné_výdavky[[#This Row],[Predpokladané náklady]]-Tabuľka_Mesačné_výdavky[[#This Row],[Skutočné náklady]])","v":{"v":0,"d":"0 EUR"}},{"$f":"Tabuľka_Mesačné_výdavky[[#This Row],[Skutočné náklady]]","v":100}]
[null,"Koncerty","Zábava",{"v":50,"d":"50 EUR"},{"v":40,"d":"40 EUR"},{"$f":"IF(OR(Tabuľka_Mesačné_výdavky[[#This Row],[Predpokladané náklady]]=\"\",Tabuľka_Mesačné_výdavky[[#This Row],[Skutočné náklady]]=\"\"),\"\",Tabuľka_Mesačné_výdavky[[#This Row],[Predpokladané náklady]]-Tabuľka_Mesačné_výdavky[[#This Row],[Skutočné náklady]])","v":{"v":10,"d":"10 EUR"}},{"$f":"Tabuľka_Mesačné_výdavky[[#This Row],[Skutočné náklady]]","v":40}]
[null,"Divadlo","Zábava",{"v":200,"d":"200 EUR"},{"v":150,"d":"150 EUR"},{"$f":"IF(OR(Tabuľka_Mesačné_výdavky[[#This Row],[Predpokladané náklady]]=\"\",Tabuľka_Mesačné_výdavky[[#This Row],[Skutočné náklady]]=\"\"),\"\",Tabuľka_Mesačné_výdavky[[#This Row],[Predpokladané náklady]]-Tabuľka_Mesačné_výdavky[[#This Row],[Skutočné náklady]])","v":{"v":50,"d":"50 EUR"}},{"$f":"Tabuľka_Mesačné_výdavky[[#This Row],[Skutočné náklady]]","v":150}]
[null,"Filmy","Zábava",{"v":50,"d":"50 EUR"},{"v":28,"d":"28 EUR"},{"$f":"IF(OR(Tabuľka_Mesačné_výdavky[[#This Row],[Predpokladané náklady]]=\"\",Tabuľka_Mesačné_výdavky[[#This Row],[Skutočné náklady]]=\"\"),\"\",Tabuľka_Mesačné_výdavky[[#This Row],[Predpokladané náklady]]-Tabuľka_Mesačné_výdavky[[#This Row],[Skutočné náklady]])","v":{"v":22,"d":"22 EUR"}},{"$f":"Tabuľka_Mesačné_výdavky[[#This Row],[Skutočné náklady]]","v":28}]
[null,"Hudba (CD, stiahnuté súbory atď.)","Zábava",{"v":50,"d":"50 EUR"},{"v":30,"d":"30 EUR"},{"$f":"IF(OR(Tabuľka_Mesačné_výdavky[[#This Row],[Predpokladané náklady]]=\"\",Tabuľka_Mesačné_výdavky[[#This Row],[Skutočné náklady]]=\"\"),\"\",Tabuľka_Mesačné_výdavky[[#This Row],[Predpokladané náklady]]-Tabuľka_Mesačné_výdavky[[#This Row],[Skutočné náklady]])","v":{"v":20,"d":"20 EUR"}},{"$f":"Tabuľka_Mesačné_výdavky[[#This Row],[Skutočné náklady]]","v":30}]
[null,"Športové podujatia","Zábava",{"v":0,"d":"0 EUR"},{"v":40,"d":"40 EUR"},{"$f":"IF(OR(Tabuľka_Mesačné_výdavky[[#This Row],[Predpokladané náklady]]=\"\",Tabuľka_Mesačné_výdavky[[#This Row],[Skutočné náklady]]=\"\"),\"\",Tabuľka_Mesačné_výdavky[[#This Row],[Predpokladané náklady]]-Tabuľka_Mesačné_výdavky[[#This Row],[Skutočné náklady]])","v":{"v":-40,"d":"-40 EUR"}},{"$f":"Tabuľka_Mesačné_výdavky[[#This Row],[Skutočné náklady]]","v":40}]
[null,"Video/DVD (kúpa)","Zábava",{"v":20,"d":"20 EUR"},{"v":50,"d":"50 EUR"},{"$f":"IF(OR(Tabuľka_Mesačné_výdavky[[#This Row],[Predpokladané náklady]]=\"\",Tabuľka_Mesačné_výdavky[[#This Row],[Skutočné náklady]]=\"\"),\"\",Tabuľka_Mesačné_výdavky[[#This Row],[Predpokladané náklady]]-Tabuľka_Mesačné_výdavky[[#This Row],[Skutočné náklady]])","v":{"v":-30,"d":"-30 EUR"}},{"$f":"Tabuľka_Mesačné_výdavky[[#This Row],[Skutočné náklady]]","v":50}]
[null,"Video/DVD (výpožičky)","Zábava",{"v":30,"d":"30 EUR"},{"v":20,"d":"20 EUR"},{"$f":"IF(OR(Tabuľka_Mesačné_výdavky[[#This Row],[Predpokladané náklady]]=\"\",Tabuľka_Mesačné_výdavky[[#This Row],[Skutočné náklady]]=\"\"),\"\",Tabuľka_Mesačné_výdavky[[#This Row],[Predpokladané náklady]]-Tabuľka_Mesačné_výdavky[[#This Row],[Skutočné náklady]])","v":{"v":10,"d":"10 EUR"}},{"$f":"Tabuľka_Mesačné_výdavky[[#This Row],[Skutočné náklady]]","v":20}]
[null,"Reštaurácie","Jedlo",{"v":1000,"d":"1,000 EUR"},{"v":1200,"d":"1,200 EUR"},{"$f":"IF(OR(Tabuľka_Mesačné_výdavky[[#This Row],[Predpokladané náklady]]=\"\",Tabuľka_Mesačné_výdavky[[#This Row],[Skutočné náklady]]=\"\"),\"\",Tabuľka_Mesačné_výdavky[[#This Row],[Predpokladané náklady]]-Tabuľka_Mesačné_výdavky[[#This Row],[Skutočné náklady]])","v":{"v":-200,"d":"-200 EUR"}},{"$f":"Tabuľka_Mesačné_výdavky[[#This Row],[Skutočné náklady]]","v":1200}]
[null,"Potraviny","Jedlo",{"v":100,"d":"100 EUR"},{"v":120,"d":"120 EUR"},{"$f":"IF(OR(Tabuľka_Mesačné_výdavky[[#This Row],[Predpokladané náklady]]=\"\",Tabuľka_Mesačné_výdavky[[#This Row],[Skutočné náklady]]=\"\"),\"\",Tabuľka_Mesačné_výdavky[[#This Row],[Predpokladané náklady]]-Tabuľka_Mesačné_výdavky[[#This Row],[Skutočné náklady]])","v":{"v":-20,"d":"-20 EUR"}},{"$f":"Tabuľka_Mesačné_výdavky[[#This Row],[Skutočné náklady]]","v":120}]
[null,"Charita 1","Dary a príspevky",{"v":75,"d":"75 EUR"},{"v":100,"d":"100 EUR"},{"$f":"IF(OR(Tabuľka_Mesačné_výdavky[[#This Row],[Predpokladané náklady]]=\"\",Tabuľka_Mesačné_výdavky[[#This Row],[Skutočné náklady]]=\"\"),\"\",Tabuľka_Mesačné_výdavky[[#This Row],[Predpokladané náklady]]-Tabuľka_Mesačné_výdavky[[#This Row],[Skutočné náklady]])","v":{"v":-25,"d":"-25 EUR"}},{"$f":"Tabuľka_Mesačné_výdavky[[#This Row],[Skutočné náklady]]","v":100}]
[null,"Charita 2","Dary a príspevky",{"v":25,"d":"25 EUR"},{"v":25,"d":"25 EUR"},{"$f":"IF(OR(Tabuľka_Mesačné_výdavky[[#This Row],[Predpokladané náklady]]=\"\",Tabuľka_Mesačné_výdavky[[#This Row],[Skutočné náklady]]=\"\"),\"\",Tabuľka_Mesačné_výdavky[[#This Row],[Predpokladané náklady]]-Tabuľka_Mesačné_výdavky[[#This Row],[Skutočné náklady]])","v":{"v":0,"d":"0 EUR"}},{"$f":"Tabuľka_Mesačné_výdavky[[#This Row],[Skutočné náklady]]","v":25}]
[null,"Dar 1","Dary a príspevky",null,null,{"$f":"IF(OR(Tabuľka_Mesačné_výdavky[[#This Row],[Predpokladané náklady]]=\"\",Tabuľka_Mesačné_výdavky[[#This Row],[Skutočné náklady]]=\"\"),\"\",Tabuľka_Mesačné_výdavky[[#This Row],[Predpokladané náklady]]-Tabuľka_Mesačné_výdavky[[#This Row],[Skutočné náklady]])","v":""},{"$f":"Tabuľka_Mesačné_výdavky[[#This Row],[Skutočné náklady]]","v":0}]
[null,"Dar 2","Dary a príspevky",null,null,{"$f":"IF(OR(Tabuľka_Mesačné_výdavky[[#This Row],[Predpokladané náklady]]=\"\",Tabuľka_Mesačné_výdavky[[#This Row],[Skutočné náklady]]=\"\"),\"\",Tabuľka_Mesačné_výdavky[[#This Row],[Predpokladané náklady]]-Tabuľka_Mesačné_výdavky[[#This Row],[Skutočné náklady]])","v":""},{"$f":"Tabuľka_Mesačné_výdavky[[#This Row],[Skutočné náklady]]","v":0}]
[null,"Káblová/satelitná televízia","Bývanie",{"v":100,"d":"100 EUR"},{"v":100,"d":"100 EUR"},{"$f":"IF(OR(Tabuľka_Mesačné_výdavky[[#This Row],[Predpokladané náklady]]=\"\",Tabuľka_Mesačné_výdavky[[#This Row],[Skutočné náklady]]=\"\"),\"\",Tabuľka_Mesačné_výdavky[[#This Row],[Predpokladané náklady]]-Tabuľka_Mesačné_výdavky[[#This Row],[Skutočné náklady]])","v":{"v":0,"d":"0 EUR"}},{"$f":"Tabuľka_Mesačné_výdavky[[#This Row],[Skutočné náklady]]","v":100}]
[null,"Elektrina","Bývanie",{"v":45,"d":"45 EUR"},{"v":50,"d":"50 EUR"},{"$f":"IF(OR(Tabuľka_Mesačné_výdavky[[#This Row],[Predpokladané náklady]]=\"\",Tabuľka_Mesačné_výdavky[[#This Row],[Skutočné náklady]]=\"\"),\"\",Tabuľka_Mesačné_výdavky[[#This Row],[Predpokladané náklady]]-Tabuľka_Mesačné_výdavky[[#This Row],[Skutočné náklady]])","v":{"v":-5,"d":"-5 EUR"}},{"$f":"Tabuľka_Mesačné_výdavky[[#This Row],[Skutočné náklady]]","v":50}]
[null,"Plyn","Bývanie",{"v":300,"d":"300 EUR"},{"v":400,"d":"400 EUR"},{"$f":"IF(OR(Tabuľka_Mesačné_výdavky[[#This Row],[Predpokladané náklady]]=\"\",Tabuľka_Mesačné_výdavky[[#This Row],[Skutočné náklady]]=\"\"),\"\",Tabuľka_Mesačné_výdavky[[#This Row],[Predpokladané náklady]]-Tabuľka_Mesačné_výdavky[[#This Row],[Skutočné náklady]])","v":{"v":-100,"d":"-100 EUR"}},{"$f":"Tabuľka_Mesačné_výdavky[[#This Row],[Skutočné náklady]]","v":400}]
[null,"Upratovacie služby","Bývanie",{"v":200,"d":"200 EUR"},null,{"$f":"IF(OR(Tabuľka_Mesačné_výdavky[[#This Row],[Predpokladané náklady]]=\"\",Tabuľka_Mesačné_výdavky[[#This Row],[Skutočné náklady]]=\"\"),\"\",Tabuľka_Mesačné_výdavky[[#This Row],[Predpokladané náklady]]-Tabuľka_Mesačné_výdavky[[#This Row],[Skutočné náklady]])","v":""},{"$f":"Tabuľka_Mesačné_výdavky[[#This Row],[Skutočné náklady]]","v":0}]
[null,"Údržba","Bývanie",{"v":200,"d":"200 EUR"},{"v":150,"d":"150 EUR"},{"$f":"IF(OR(Tabuľka_Mesačné_výdavky[[#This Row],[Predpokladané náklady]]=\"\",Tabuľka_Mesačné_výdavky[[#This Row],[Skutočné náklady]]=\"\"),\"\",Tabuľka_Mesačné_výdavky[[#This Row],[Predpokladané náklady]]-Tabuľka_Mesačné_výdavky[[#This Row],[Skutočné náklady]])","v":{"v":50,"d":"50 EUR"}},{"$f":"Tabuľka_Mesačné_výdavky[[#This Row],[Skutočné náklady]]","v":150}]
[null,"Hypotéka alebo nájomné","Bývanie",{"v":1700,"d":"1,700 EUR"},{"v":1700,"d":"1,700 EUR"},{"$f":"IF(OR(Tabuľka_Mesačné_výdavky[[#This Row],[Predpokladané náklady]]=\"\",Tabuľka_Mesačné_výdavky[[#This Row],[Skutočné náklady]]=\"\"),\"\",Tabuľka_Mesačné_výdavky[[#This Row],[Predpokladané náklady]]-Tabuľka_Mesačné_výdavky[[#This Row],[Skutočné náklady]])","v":{"v":0,"d":"0 EUR"}},{"$f":"Tabuľka_Mesačné_výdavky[[#This Row],[Skutočné náklady]]","v":1700}]
[null,"Zemný plyn/vykurovací olej","Bývanie",null,null,{"$f":"IF(OR(Tabuľka_Mesačné_výdavky[[#This Row],[Predpokladané náklady]]=\"\",Tabuľka_Mesačné_výdavky[[#This Row],[Skutočné náklady]]=\"\"),\"\",Tabuľka_Mesačné_výdavky[[#This Row],[Predpokladané náklady]]-Tabuľka_Mesačné_výdavky[[#This Row],[Skutočné náklady]])","v":""},{"$f":"Tabuľka_Mesačné_výdavky[[#This Row],[Skutočné náklady]]","v":0}]
[null,"Internet","Bývanie",{"v":100,"d":"100 EUR"},{"v":100,"d":"100 EUR"},{"$f":"IF(OR(Tabuľka_Mesačné_výdavky[[#This Row],[Predpokladané náklady]]=\"\",Tabuľka_Mesačné_výdavky[[#This Row],[Skutočné náklady]]=\"\"),\"\",Tabuľka_Mesačné_výdavky[[#This Row],[Predpokladané náklady]]-Tabuľka_Mesačné_výdavky[[#This Row],[Skutočné náklady]])","v":{"v":0,"d":"0 EUR"}},{"$f":"Tabuľka_Mesačné_výdavky[[#This Row],[Skutočné náklady]]","v":100}]
[null,"Telefón (mobil)","Bývanie",{"v":60,"d":"60 EUR"},{"v":60,"d":"60 EUR"},{"$f":"IF(OR(Tabuľka_Mesačné_výdavky[[#This Row],[Predpokladané náklady]]=\"\",Tabuľka_Mesačné_výdavky[[#This Row],[Skutočné náklady]]=\"\"),\"\",Tabuľka_Mesačné_výdavky[[#This Row],[Predpokladané náklady]]-Tabuľka_Mesačné_výdavky[[#This Row],[Skutočné náklady]])","v":{"v":0,"d":"0 EUR"}},{"$f":"Tabuľka_Mesačné_výdavky[[#This Row],[Skutočné náklady]]","v":60}]
[null,"Telefón (pevná linka)","Bývanie",{"v":35,"d":"35 EUR"},{"v":39,"d":"39 EUR"},{"$f":"IF(OR(Tabuľka_Mesačné_výdavky[[#This Row],[Predpokladané náklady]]=\"\",Tabuľka_Mesačné_výdavky[[#This Row],[Skutočné náklady]]=\"\"),\"\",Tabuľka_Mesačné_výdavky[[#This Row],[Predpokladané náklady]]-Tabuľka_Mesačné_výdavky[[#This Row],[Skutočné náklady]])","v":{"v":-4,"d":"-4 EUR"}},{"$f":"Tabuľka_Mesačné_výdavky[[#This Row],[Skutočné náklady]]","v":39}]
[null,"Jednorazové potreby","Bývanie",{"v":40,"d":"40 EUR"},{"v":55,"d":"55 EUR"},{"$f":"IF(OR(Tabuľka_Mesačné_výdavky[[#This Row],[Predpokladané náklady]]=\"\",Tabuľka_Mesačné_výdavky[[#This Row],[Skutočné náklady]]=\"\"),\"\",Tabuľka_Mesačné_výdavky[[#This Row],[Predpokladané náklady]]-Tabuľka_Mesačné_výdavky[[#This Row],[Skutočné náklady]])","v":{"v":-15,"d":"-15 EUR"}},{"$f":"Tabuľka_Mesačné_výdavky[[#This Row],[Skutočné náklady]]","v":55}]
[null,"Odvoz a recyklácia odpadu","Bývanie",{"v":25,"d":"25 EUR"},{"v":22,"d":"22 EUR"},{"$f":"IF(OR(Tabuľka_Mesačné_výdavky[[#This Row],[Predpokladané náklady]]=\"\",Tabuľka_Mesačné_výdavky[[#This Row],[Skutočné náklady]]=\"\"),\"\",Tabuľka_Mesačné_výdavky[[#This Row],[Predpokladané náklady]]-Tabuľka_Mesačné_výdavky[[#This Row],[Skutočné náklady]])","v":{"v":3,"d":"3 EUR"}},{"$f":"Tabuľka_Mesačné_výdavky[[#This Row],[Skutočné náklady]]","v":22}]
[null,"Vodné a stočné","Bývanie",{"v":25,"d":"25 EUR"},{"v":26,"d":"26 EUR"},{"$f":"IF(OR(Tabuľka_Mesačné_výdavky[[#This Row],[Predpokladané náklady]]=\"\",Tabuľka_Mesačné_výdavky[[#This Row],[Skutočné náklady]]=\"\"),\"\",Tabuľka_Mesačné_výdavky[[#This Row],[Predpokladané náklady]]-Tabuľka_Mesačné_výdavky[[#This Row],[Skutočné náklady]])","v":{"v":-1,"d":"-1 EUR"}},{"$f":"Tabuľka_Mesačné_výdavky[[#This Row],[Skutočné náklady]]","v":26}]
[null,"Zdravie","Poistenie",{"v":400,"d":"400 EUR"},{"v":400,"d":"400 EUR"},{"$f":"IF(OR(Tabuľka_Mesačné_výdavky[[#This Row],[Predpokladané náklady]]=\"\",Tabuľka_Mesačné_výdavky[[#This Row],[Skutočné náklady]]=\"\"),\"\",Tabuľka_Mesačné_výdavky[[#This Row],[Predpokladané náklady]]-Tabuľka_Mesačné_výdavky[[#This Row],[Skutočné náklady]])","v":{"v":0,"d":"0 EUR"}},{"$f":"Tabuľka_Mesačné_výdavky[[#This Row],[Skutočné náklady]]","v":400}]
[null,"Domácnosť","Poistenie",{"v":400,"d":"400 EUR"},{"v":400,"d":"400 EUR"},{"$f":"IF(OR(Tabuľka_Mesačné_výdavky[[#This Row],[Predpokladané náklady]]=\"\",Tabuľka_Mesačné_výdavky[[#This Row],[Skutočné náklady]]=\"\"),\"\",Tabuľka_Mesačné_výdavky[[#This Row],[Predpokladané náklady]]-Tabuľka_Mesačné_výdavky[[#This Row],[Skutočné náklady]])","v":{"v":0,"d":"0 EUR"}},{"$f":"Tabuľka_Mesačné_výdavky[[#This Row],[Skutočné náklady]]","v":400}]
[null,"Život","Poistenie",{"v":100,"d":"100 EUR"},{"v":100,"d":"100 EUR"},{"$f":"IF(OR(Tabuľka_Mesačné_výdavky[[#This Row],[Predpokladané náklady]]=\"\",Tabuľka_Mesačné_výdavky[[#This Row],[Skutočné náklady]]=\"\"),\"\",Tabuľka_Mesačné_výdavky[[#This Row],[Predpokladané náklady]]-Tabuľka_Mesačné_výdavky[[#This Row],[Skutočné náklady]])","v":{"v":0,"d":"0 EUR"}},{"$f":"Tabuľka_Mesačné_výdavky[[#This Row],[Skutočné náklady]]","v":100}]
[null,"Kreditná karta 1","Pôžičky",{"v":200,"d":"200 EUR"},{"v":200,"d":"200 EUR"},{"$f":"IF(OR(Tabuľka_Mesačné_výdavky[[#This Row],[Predpokladané náklady]]=\"\",Tabuľka_Mesačné_výdavky[[#This Row],[Skutočné náklady]]=\"\"),\"\",Tabuľka_Mesačné_výdavky[[#This Row],[Predpokladané náklady]]-Tabuľka_Mesačné_výdavky[[#This Row],[Skutočné náklady]])","v":{"v":0,"d":"0 EUR"}},{"$f":"Tabuľka_Mesačné_výdavky[[#This Row],[Skutočné náklady]]","v":200}]
[null,"Kreditná karta 2","Pôžičky",null,null,{"$f":"IF(OR(Tabuľka_Mesačné_výdavky[[#This Row],[Predpokladané náklady]]=\"\",Tabuľka_Mesačné_výdavky[[#This Row],[Skutočné náklady]]=\"\"),\"\",Tabuľka_Mesačné_výdavky[[#This Row],[Predpokladané náklady]]-Tabuľka_Mesačné_výdavky[[#This Row],[Skutočné náklady]])","v":""},{"$f":"Tabuľka_Mesačné_výdavky[[#This Row],[Skutočné náklady]]","v":0}]
[null,"Kreditná karta 3","Pôžičky",null,null,{"$f":"IF(OR(Tabuľka_Mesačné_výdavky[[#This Row],[Predpokladané náklady]]=\"\",Tabuľka_Mesačné_výdavky[[#This Row],[Skutočné náklady]]=\"\"),\"\",Tabuľka_Mesačné_výdavky[[#This Row],[Predpokladané náklady]]-Tabuľka_Mesačné_výdavky[[#This Row],[Skutočné náklady]])","v":""},{"$f":"Tabuľka_Mesačné_výdavky[[#This Row],[Skutočné náklady]]","v":0}]
[null,"Osobné","Pôžičky",null,null,{"$f":"IF(OR(Tabuľka_Mesačné_výdavky[[#This Row],[Predpokladané náklady]]=\"\",Tabuľka_Mesačné_výdavky[[#This Row],[Skutočné náklady]]=\"\"),\"\",Tabuľka_Mesačné_výdavky[[#This Row],[Predpokladané náklady]]-Tabuľka_Mesačné_výdavky[[#This Row],[Skutočné náklady]])","v":""},{"$f":"Tabuľka_Mesačné_výdavky[[#This Row],[Skutočné náklady]]","v":0}]
[null,"Študentské","Pôžičky",null,null,{"$f":"IF(OR(Tabuľka_Mesačné_výdavky[[#This Row],[Predpokladané náklady]]=\"\",Tabuľka_Mesačné_výdavky[[#This Row],[Skutočné náklady]]=\"\"),\"\",Tabuľka_Mesačné_výdavky[[#This Row],[Predpokladané náklady]]-Tabuľka_Mesačné_výdavky[[#This Row],[Skutočné náklady]])","v":""},{"$f":"Tabuľka_Mesačné_výdavky[[#This Row],[Skutočné náklady]]","v":0}]
[null,"Oblečenie","Osobná starostlivosť",{"v":150,"d":"150 EUR"},{"v":140,"d":"140 EUR"},{"$f":"IF(OR(Tabuľka_Mesačné_výdavky[[#This Row],[Predpokladané náklady]]=\"\",Tabuľka_Mesačné_výdavky[[#This Row],[Skutočné náklady]]=\"\"),\"\",Tabuľka_Mesačné_výdavky[[#This Row],[Predpokladané náklady]]-Tabuľka_Mesačné_výdavky[[#This Row],[Skutočné náklady]])","v":{"v":10,"d":"10 EUR"}},{"$f":"Tabuľka_Mesačné_výdavky[[#This Row],[Skutočné náklady]]","v":140}]
[null,"Čistiareň","Osobná starostlivosť",null,null,{"$f":"IF(OR(Tabuľka_Mesačné_výdavky[[#This Row],[Predpokladané náklady]]=\"\",Tabuľka_Mesačné_výdavky[[#This Row],[Skutočné náklady]]=\"\"),\"\",Tabuľka_Mesačné_výdavky[[#This Row],[Predpokladané náklady]]-Tabuľka_Mesačné_výdavky[[#This Row],[Skutočné náklady]])","v":""},{"$f":"Tabuľka_Mesačné_výdavky[[#This Row],[Skutočné náklady]]","v":0}]
[null,"Kaderníctvo a manikúra","Osobná starostlivosť",null,null,{"$f":"IF(OR(Tabuľka_Mesačné_výdavky[[#This Row],[Predpokladané náklady]]=\"\",Tabuľka_Mesačné_výdavky[[#This Row],[Skutočné náklady]]=\"\"),\"\",Tabuľka_Mesačné_výdavky[[#This Row],[Predpokladané náklady]]-Tabuľka_Mesačné_výdavky[[#This Row],[Skutočné náklady]])","v":""},{"$f":"Tabuľka_Mesačné_výdavky[[#This Row],[Skutočné náklady]]","v":0}]
[null,"Zdravotný klub","Osobná starostlivosť",null,null,{"$f":"IF(OR(Tabuľka_Mesačné_výdavky[[#This Row],[Predpokladané náklady]]=\"\",Tabuľka_Mesačné_výdavky[[#This Row],[Skutočné náklady]]=\"\"),\"\",Tabuľka_Mesačné_výdavky[[#This Row],[Predpokladané náklady]]-Tabuľka_Mesačné_výdavky[[#This Row],[Skutočné náklady]])","v":""},{"$f":"Tabuľka_Mesačné_výdavky[[#This Row],[Skutočné náklady]]","v":0}]
[null,"Lieky","Osobná starostlivosť",null,null,{"$f":"IF(OR(Tabuľka_Mesačné_výdavky[[#This Row],[Predpokladané náklady]]=\"\",Tabuľka_Mesačné_výdavky[[#This Row],[Skutočné náklady]]=\"\"),\"\",Tabuľka_Mesačné_výdavky[[#This Row],[Predpokladané náklady]]-Tabuľka_Mesačné_výdavky[[#This Row],[Skutočné náklady]])","v":""},{"$f":"Tabuľka_Mesačné_výdavky[[#This Row],[Skutočné náklady]]","v":0}]
[null,"Potraviny","Domáce zvieratá",{"v":150,"d":"150 EUR"},{"v":75,"d":"75 EUR"},{"$f":"IF(OR(Tabuľka_Mesačné_výdavky[[#This Row],[Predpokladané náklady]]=\"\",Tabuľka_Mesačné_výdavky[[#This Row],[Skutočné náklady]]=\"\"),\"\",Tabuľka_Mesačné_výdavky[[#This Row],[Predpokladané náklady]]-Tabuľka_Mesačné_výdavky[[#This Row],[Skutočné náklady]])","v":{"v":75,"d":"75 EUR"}},{"$f":"Tabuľka_Mesačné_výdavky[[#This Row],[Skutočné náklady]]","v":75}]
[null,"Starostlivosť o výzor","Domáce zvieratá",{"v":20,"d":"20 EUR"},{"v":25,"d":"25 EUR"},{"$f":"IF(OR(Tabuľka_Mesačné_výdavky[[#This Row],[Predpokladané náklady]]=\"\",Tabuľka_Mesačné_výdavky[[#This Row],[Skutočné náklady]]=\"\"),\"\",Tabuľka_Mesačné_výdavky[[#This Row],[Predpokladané náklady]]-Tabuľka_Mesačné_výdavky[[#This Row],[Skutočné náklady]])","v":{"v":-5,"d":"-5 EUR"}},{"$f":"Tabuľka_Mesačné_výdavky[[#This Row],[Skutočné náklady]]","v":25}]
[null,"Zdravie","Domáce zvieratá",null,null,{"$f":"IF(OR(Tabuľka_Mesačné_výdavky[[#This Row],[Predpokladané náklady]]=\"\",Tabuľka_Mesačné_výdavky[[#This Row],[Skutočné náklady]]=\"\"),\"\",Tabuľka_Mesačné_výdavky[[#This Row],[Predpokladané náklady]]-Tabuľka_Mesačné_výdavky[[#This Row],[Skutočné náklady]])","v":""},{"$f":"Tabuľka_Mesačné_výdavky[[#This Row],[Skutočné náklady]]","v":0}]
[null,"Hračky","Domáce zvieratá",null,null,{"$f":"IF(OR(Tabuľka_Mesačné_výdavky[[#This Row],[Predpokladané náklady]]=\"\",Tabuľka_Mesačné_výdavky[[#This Row],[Skutočné náklady]]=\"\"),\"\",Tabuľka_Mesačné_výdavky[[#This Row],[Predpokladané náklady]]-Tabuľka_Mesačné_výdavky[[#This Row],[Skutočné náklady]])","v":""},{"$f":"Tabuľka_Mesačné_výdavky[[#This Row],[Skutočné náklady]]","v":0}]
[null,"Investičný účet","Sporenie",{"v":200,"d":"200 EUR"},{"v":200,"d":"200 EUR"},{"$f":"IF(OR(Tabuľka_Mesačné_výdavky[[#This Row],[Predpokladané náklady]]=\"\",Tabuľka_Mesačné_výdavky[[#This Row],[Skutočné náklady]]=\"\"),\"\",Tabuľka_Mesačné_výdavky[[#This Row],[Predpokladané náklady]]-Tabuľka_Mesačné_výdavky[[#This Row],[Skutočné náklady]])","v":{"v":0,"d":"0 EUR"}},{"$f":"Tabuľka_Mesačné_výdavky[[#This Row],[Skutočné náklady]]","v":200}]
[null,"Dôchodkový účet","Sporenie",null,null,{"$f":"IF(OR(Tabuľka_Mesačné_výdavky[[#This Row],[Predpokladané náklady]]=\"\",Tabuľka_Mesačné_výdavky[[#This Row],[Skutočné náklady]]=\"\"),\"\",Tabuľka_Mesačné_výdavky[[#This Row],[Predpokladané náklady]]-Tabuľka_Mesačné_výdavky[[#This Row],[Skutočné náklady]])","v":""},{"$f":"Tabuľka_Mesačné_výdavky[[#This Row],[Skutočné náklady]]","v":0}]
[null,"Celoštátne","Dane",{"v":300,"d":"300 EUR"},{"v":300,"d":"300 EUR"},{"$f":"IF(OR(Tabuľka_Mesačné_výdavky[[#This Row],[Predpokladané náklady]]=\"\",Tabuľka_Mesačné_výdavky[[#This Row],[Skutočné náklady]]=\"\"),\"\",Tabuľka_Mesačné_výdavky[[#This Row],[Predpokladané náklady]]-Tabuľka_Mesačné_výdavky[[#This Row],[Skutočné náklady]])","v":{"v":0,"d":"0 EUR"}},{"$f":"Tabuľka_Mesačné_výdavky[[#This Row],[Skutočné náklady]]","v":300}]
[null,"Miestne","Dane",null,null,{"$f":"IF(OR(Tabuľka_Mesačné_výdavky[[#This Row],[Predpokladané náklady]]=\"\",Tabuľka_Mesačné_výdavky[[#This Row],[Skutočné náklady]]=\"\"),\"\",Tabuľka_Mesačné_výdavky[[#This Row],[Predpokladané náklady]]-Tabuľka_Mesačné_výdavky[[#This Row],[Skutočné náklady]])","v":""},{"$f":"Tabuľka_Mesačné_výdavky[[#This Row],[Skutočné náklady]]","v":0}]
[null,"Štátne","Dane",null,null,{"$f":"IF(OR(Tabuľka_Mesačné_výdavky[[#This Row],[Predpokladané náklady]]=\"\",Tabuľka_Mesačné_výdavky[[#This Row],[Skutočné náklady]]=\"\"),\"\",Tabuľka_Mesačné_výdavky[[#This Row],[Predpokladané náklady]]-Tabuľka_Mesačné_výdavky[[#This Row],[Skutočné náklady]])","v":""},{"$f":"Tabuľka_Mesačné_výdavky[[#This Row],[Skutočné náklady]]","v":0}]
[null,"Cestovné za autobus alebo taxi","Doprava",{"v":100,"d":"100 EUR"},{"v":150,"d":"150 EUR"},{"$f":"IF(OR(Tabuľka_Mesačné_výdavky[[#This Row],[Predpokladané náklady]]=\"\",Tabuľka_Mesačné_výdavky[[#This Row],[Skutočné náklady]]=\"\"),\"\",Tabuľka_Mesačné_výdavky[[#This Row],[Predpokladané náklady]]-Tabuľka_Mesačné_výdavky[[#This Row],[Skutočné náklady]])","v":{"v":-50,"d":"-50 EUR"}},{"$f":"Tabuľka_Mesačné_výdavky[[#This Row],[Skutočné náklady]]","v":150}]
[null,"Pohonné hmoty","Doprava",{"v":450,"d":"450 EUR"},{"v":400,"d":"400 EUR"},{"$f":"IF(OR(Tabuľka_Mesačné_výdavky[[#This Row],[Predpokladané náklady]]=\"\",Tabuľka_Mesačné_výdavky[[#This Row],[Skutočné náklady]]=\"\"),\"\",Tabuľka_Mesačné_výdavky[[#This Row],[Predpokladané náklady]]-Tabuľka_Mesačné_výdavky[[#This Row],[Skutočné náklady]])","v":{"v":50,"d":"50 EUR"}},{"$f":"Tabuľka_Mesačné_výdavky[[#This Row],[Skutočné náklady]]","v":400}]
[null,"Poistenie","Doprava",{"v":300,"d":"300 EUR"},{"v":300,"d":"300 EUR"},{"$f":"IF(OR(Tabuľka_Mesačné_výdavky[[#This Row],[Predpokladané náklady]]=\"\",Tabuľka_Mesačné_výdavky[[#This Row],[Skutočné náklady]]=\"\"),\"\",Tabuľka_Mesačné_výdavky[[#This Row],[Predpokladané náklady]]-Tabuľka_Mesačné_výdavky[[#This Row],[Skutočné náklady]])","v":{"v":0,"d":"0 EUR"}},{"$f":"Tabuľka_Mesačné_výdavky[[#This Row],[Skutočné náklady]]","v":300}]
[null,"Úradné poplatky ","Doprava",{"v":25,"d":"25 EUR"},{"v":25,"d":"25 EUR"},{"$f":"IF(OR(Tabuľka_Mesačné_výdavky[[#This Row],[Predpokladané náklady]]=\"\",Tabuľka_Mesačné_výdavky[[#This Row],[Skutočné náklady]]=\"\"),\"\",Tabuľka_Mesačné_výdavky[[#This Row],[Predpokladané náklady]]-Tabuľka_Mesačné_výdavky[[#This Row],[Skutočné náklady]])","v":{"v":0,"d":"0 EUR"}},{"$f":"Tabuľka_Mesačné_výdavky[[#This Row],[Skutočné náklady]]","v":25}]
[null,"Údržba","Doprava",{"v":100,"d":"100 EUR"},{"v":50,"d":"50 EUR"},{"$f":"IF(OR(Tabuľka_Mesačné_výdavky[[#This Row],[Predpokladané náklady]]=\"\",Tabuľka_Mesačné_výdavky[[#This Row],[Skutočné náklady]]=\"\"),\"\",Tabuľka_Mesačné_výdavky[[#This Row],[Predpokladané náklady]]-Tabuľka_Mesačné_výdavky[[#This Row],[Skutočné náklady]])","v":{"v":50,"d":"50 EUR"}},{"$f":"Tabuľka_Mesačné_výdavky[[#This Row],[Skutočné náklady]]","v":50}]
[null,"Parkovacie poplatky","Doprava",null,null,{"$f":"IF(OR(Tabuľka_Mesačné_výdavky[[#This Row],[Predpokladané náklady]]=\"\",Tabuľka_Mesačné_výdavky[[#This Row],[Skutočné náklady]]=\"\"),\"\",Tabuľka_Mesačné_výdavky[[#This Row],[Predpokladané náklady]]-Tabuľka_Mesačné_výdavky[[#This Row],[Skutočné náklady]])","v":""},{"$f":"Tabuľka_Mesačné_výdavky[[#This Row],[Skutočné náklady]]","v":0}]
[null,"Platba za vozidlo","Doprava",{"v":450,"d":"450 EUR"},{"v":450,"d":"450 EUR"},{"$f":"IF(OR(Tabuľka_Mesačné_výdavky[[#This Row],[Predpokladané náklady]]=\"\",Tabuľka_Mesačné_výdavky[[#This Row],[Skutočné náklady]]=\"\"),\"\",Tabuľka_Mesačné_výdavky[[#This Row],[Predpokladané náklady]]-Tabuľka_Mesačné_výdavky[[#This Row],[Skutočné náklady]])","v":{"v":0,"d":"0 EUR"}},{"$f":"Tabuľka_Mesačné_výdavky[[#This Row],[Skutočné náklady]]","v":450}]

{"sheet":"Ďalšie údaje","index":3,"n_rows":17,"n_cols":6,"rows_kept":17}
[{"$nulls":5}," "]
[null,"Kontingenčná tabuľka pre graf rozpočtu",null,null,"Zoznam kategórií"]
[]
[null,"Kategórie","Náklady ",null,"Ak chcete pridať kategóriu, zadajte ju nižšie"]
[null,"Domáce zvieratá",{"v":100,"d":"100 EUR"},null,"Deti"]
[null,"Dary a príspevky",{"v":125,"d":"125 EUR"},null,"Zábava"]
[null,"Deti",{"v":140,"d":"140 EUR"},null,"Jedlo"]
[null,"Osobná starostlivosť",{"v":140,"d":"140 EUR"},null,"Dary a príspevky"]
[null,"Sporenie",{"v":200,"d":"200 EUR"},null,"Bývanie"]
[null,"Pôžičky",{"v":200,"d":"200 EUR"},null,"Poistenie"]
[null,"Dane",{"v":300,"d":"300 EUR"},null,"Pôžičky"]
[null,"Zábava",{"v":358,"d":"358 EUR"},null,"Osobná starostlivosť"]
[null,"Poistenie",{"v":900,"d":"900 EUR"},null,"Domáce zvieratá"]
[null,"Jedlo",{"v":1320,"d":"1,320 EUR"},null,"Sporenie"]
[null,"Doprava",{"v":1375,"d":"1,375 EUR"},null,"Dane"]
[null,"Bývanie",{"v":2702,"d":"2,702 EUR"},null,"Doprava"]
[null,"Celkový súčet",{"v":7860,"d":"7,860 EUR"}]